Cogmind - Beta 17.1 @@@ ROGUE MODE // 2026.09.12 @ 20:29:05 Player: Zaje Result: Destroyed by C-35 Carver with Carbide Saw Performance ------------- Evolutions (5) 2500 Regions Visited (12) 2400 Robots Destroyed (138) 690 Value Destroyed (4142) 4142 Prototype IDs (28) 560 Alien Tech Used (0) 0 Bonus (330) 330 TOTAL SCORE: 10622 Bonus ------- Follower Combat Kills 30 Aligned with FarCom 300 Cogmind --------- Core Integrity 0/1000 Matter 258/300 Energy 98/100 System Corruption 9% Temperature Cool (0) Movement Core (50) Location -5/Factory Parts ------- > --- POWER (1) -------- (None) > --- PROPULSION (4) --- (None) > --- UTILITY (10) ----- (None) > --- WEAPON (2) ------- (None) > --- INVENTORY (5) ---- Light Nuclear Core Advanced Signal Interpreter Peak State ------------ > --- POWER ------------ Light Fission Core > --- PROPULSION ------- Cesium-ion Thruster Cooled VTOL Module Nuclear Pulse Array > --- UTILITY ---------- Advanced Weight Redist. System Advanced Visual Processing Unit Modified TNC Improved Reaction Control System Hardened Light Armor Plating Hardened Light Armor Plating Hacking Suite Hacking Suite Advanced Hacking Suite System Shield > --- WEAPON ----------- Heavy Battle Rifle KE Penetrator > --- INVENTORY -------- Light Nuclear Core Nuclear Pulse Thruster Weight Redist. System Advanced Signal Interpreter [Rating: 72] Favorites ----------- Power Nuclear Core Engine Cooled Ion Engine Power Core Nuclear Core Propulsion Aluminum Leg Treads Light Treads Leg Aluminum Leg Wheel Wheel Hover Unit Gravmag System Flight Unit Cesium-ion Thruster Utility Hacking Suite Device Improved Terrain Scanner Storage Large Storage Unit Processor Targeting Computer Hackware Hacking Suite Protection Hardened Light Armor Plating Weapon Autogun Energy Gun Particle Gun Ballistic Gun Autogun Ballistic Cannon Advanced Assault Cannon Launcher Mini Grenade Launcher Build | -11 -10 -10 -9 -9 -9 -8 -8 -7 -6 -6 -6 -5 ------- Run | Yrd Mat Min Mat Min Exi Min Mat Fac Fac Was Fac Fac Slots Evolved 10 | . . . 2 . . . 2 2 2 . . 2 Power . | . . . . . . . . . . . . . Propulsion 2 | . . . 2 . . . . . . . . . Utility 8 | . . . . . . . 2 2 2 . . 2 Weapon . | . . . . . . . . . . . . . Parts Attached 109 | 7 6 1 17 2 . . 31 16 3 6 7 13 Power 19 | 1 1 . 5 . . . 3 4 . 1 . 4 Engine 10 | 1 1 . 5 . . . 1 1 . . . 1 Core 9 | . . . . . . . 2 3 . 1 . 3 Reactor . | . . . . . . . . . . . . . Propulsion 34 | 2 . . 5 2 . . 15 3 1 . 5 1 Treads 6 | . . . . 2 . . 4 . . . . . Leg 15 | 2 . . 4 . . . 7 2 . . . . Wheel 4 | . . . . . . . 4 . . . . . Hover 3 | . . . . . . . . . . . 3 . Flight 6 | . . . 1 . . . . 1 1 . 2 1 Utility 30 | 2 1 . 2 . . . 5 5 2 4 2 7 Device 8 | 1 . . . . . . 1 1 . 2 . 3 Storage 3 | 1 1 . 1 . . . . . . . . . Processor 4 | . . . . . . . 1 2 1 . . . Hackware 6 | . . . 1 . . . . . 1 . 1 3 Protection 9 | . . . . . . . 3 2 . 2 1 1 Artifact . | . . . . . . . . . . . . . Weapon 26 | 2 4 1 5 . . . 8 4 . 1 . 1 Energy Gun 2 | . . . . . . . 1 1 . . . . Energy Cannon . | . . . . . . . . . . . . . Ballistic Gun 19 | 2 4 . 3 . . . 7 1 . 1 . 1 Ballistic Cannon 1 | . . . . . . . . 1 . . . . Launcher 4 | . . 1 2 . . . . 1 . . . . Special Weapon . | . . . . . . . . . . . . . Impact Weapon . | . . . . . . . . . . . . . Slashing Weapon . | . . . . . . . . . . . . . Piercing Weapon . | . . . . . . . . . . . . . Special Melee Weapon . | . . . . . . . . . . . . . Unidentified Prototypes 4 | . . . 4 . . . . . . . . . Parts Lost 52 | . . . 6 1 . . 15 14 1 3 2 10 Power 8 | . . . 1 . . . 1 3 . 1 . 2 Propulsion 19 | . . . 2 1 . . 7 5 . 1 . 3 Utility 11 | . . . 1 . . . 2 2 1 . 2 3 Weapon 14 | . . . 2 . . . 5 4 . 1 . 2 Highest Loss Streak 10 | . . . 3 1 . . 4 10 1 3 1 8 To Critical Strikes . | . . . . . . . . . . . . . Average Backups 10 | 2 7 8 7 11 14 15 14 11 5 4 4 4 Power 1 | . . . . 2 2 2 2 1 1 . . 1 Propulsion 1 | 1 2 2 . 1 2 2 1 1 . . . . Utility 4 | . 1 3 3 6 6 7 7 6 4 3 2 1 Weapon 2 | . 2 3 2 2 4 4 3 2 . . 2 1 Tool/Special . | . . . . . . . . . . . . . Unused Backups 23 | . 7 . 1 . . 1 4 3 . 1 1 5 Power 6 | . 1 . 1 . . . 3 1 . . . . Propulsion 4 | . 4 . . . . . . . . . . . Utility 6 | . . . . . . . . 2 . 1 1 2 Weapon 7 | . 2 . . . . 1 1 . . . . 3 Tool/Special . | . . . . . . . . . . . . . Average Slot Usage (%) 91 | . 100 100 91 95 100 100 96 82 59 55 78 85 Engine 5 | . 14 14 10 11 11 11 2 . . . . 2 Core 3 | . . . . . . . 6 6 6 6 6 2 Treads 10 | . . . . 14 22 22 19 12 . . . . Leg 14 | . 28 28 38 25 22 22 9 3 . . . . Wheel 1 | . . . . . . . 5 . . . . . Flight 2 | . . . . . . . . 4 14 8 7 15 Device 5 | . 14 14 5 . . . . 1 . 6 13 16 Storage 7 | . 14 14 11 11 11 11 9 5 . . . . Processor 8 | . . . . . . . 8 20 18 20 20 14 Hackware 7 | . . . 4 11 11 11 9 7 8 7 12 12 Protection 4 | . . . . . . . 8 5 3 2 5 9 Ballistic Gun 15 | . 28 18 19 22 22 22 17 4 . 2 6 8 Peak Build Rating 72 | 9 12 12 18 18 19 19 34 40 31 43 53 72 Average Rating 26 | 6 10 11 14 17 18 18 25 31 27 29 42 62 On Entrance 20 | . 9 12 11 17 18 19 19 24 25 31 36 50 Avg Prop Armor Cover (%) 6 | . . . . 10 10 10 2 12 . . 2 3 Naked Turns 17 | . . . . . . . . . . . . 17 Heaviest Build 42 | 15 15 15 34 34 34 34 42 38 9 15 15 28 Greatest Support 80 | 20 20 20 40 40 40 40 80 60 17 17 36 33 Greatest Overweight (x) 3 | 1 . . 1 1 . . 3 3 . . . 2 Average Overweight (x) . | . . . . . . . . . . . . . Largest Inventory Capacity 20 | 8 20 8 15 15 15 15 15 15 5 5 5 5 Average Capacity 11 | 7 8 8 10 15 15 15 15 12 5 5 5 5 Most Carried 15 | 4 8 8 11 14 15 15 15 15 5 5 5 5 Average Carried 10 | 3 7 8 7 11 14 14 14 11 5 4 4 4 Final Capacity 15 | 8 8 8 15 15 15 15 15 5 5 5 5 5 Final Carried 15 | 4 8 8 11 14 15 15 13 5 5 5 5 2 Class Distribution -------------------- 49% | Scavenger-Mutant 17% | Mutant 11% | Hacker-Scout 10% | Scout 10% | Scavenger-Skirmisher Dominant Class ---------------- Mutant | -10/Materials Mutant | -10/Mines Scavenger-Mutant | -9/Materials Scavenger-Mutant | -9/Mines Scavenger-Mutant | -9/Exiles Scavenger-Mutant | -8/Mines Scavenger-Mutant | -8/Materials Scavenger-Skirmisher | -7/Factory Scout | -6/Factory Scout | -6/Waste Hacker-Scout | -6/Factory Hacker-Scout | -5/Factory Resources | -11 -10 -10 -9 -9 -9 -8 -8 -7 -6 -6 -6 -5 ----------- Run | Yrd Mat Min Mat Min Exi Min Mat Fac Fac Was Fac Fac Matter Collected 3992 | 318 386 35 575 57 . . 1444 401 35 353 68 320 Remotely . | . . . . . . . . . . . . . Salvage Created 5065 | 99 495 56 868 121 . . 2032 582 109 340 83 280 Parts 285 | 3 30 4 63 6 . . 118 31 6 1 3 20 Haulers Intercepted 7 | . 1 . 1 . . . 3 2 . . . . Recyclers Shooed 2 | 1 . . . . . . 1 . . . . . Parts Field Recycled . | . . . . . . . . . . . . . Retrieved Matter . | . . . . . . . . . . . . . Parts Self-Destructed . | . . . . . . . . . . . . . Prevented . | . . . . . . . . . . . . . Parts Restored . | . . . . . . . . . . . . . Kills | -11 -10 -10 -9 -9 -9 -8 -8 -7 -6 -6 -6 -5 ------- Run | Yrd Mat Min Mat Min Exi Min Mat Fac Fac Was Fac Fac Combat Hostiles Destroyed 90 | . 8 2 15 3 . . 37 13 4 . 1 7 Guns 77 | . 8 . 13 3 . . 37 8 . . 1 7 Cannons 2 | . . . . . . . . 2 . . . . AOE 11 | . . 2 2 . . . . 3 4 . . . Classes Destroyed 15 | 2 4 . 5 1 . . 2 1 . . . . Worker 11 | . 1 2 3 . . . 3 2 . . . . Builder 8 | . . . 1 . . . 3 3 1 . . . Tunneler 3 | 1 . . 1 . . . 1 . . . . . Hauler 7 | . 1 . 1 . . . 3 2 . . . . Recycler 5 | 1 . . 2 . . . 2 . . . . . Operator 4 | . . . 1 . . . 2 . . . . 1 Watcher 10 | . 3 . 5 . . . . 1 . . 1 . Swarmer 21 | . . . 6 . . . 8 3 . . . 4 Grunt 42 | . 8 2 5 2 . . 16 4 4 . 1 . Brawler 1 | . . . . 1 . . . . . . . . Duelist 1 | . . . 1 . . . . . . . . . Sentry 12 | . . . 3 . . . 7 2 . . . . Specialist 5 | . . . . . . . 5 . . . . . Hunter 4 | . . . . . . . 1 2 . . . 1 Programmer 4 | . . . . . . . . 2 . . . 2 Best Kill Streak 7 | 2 3 2 7 3 . . 6 6 5 . 1 5 Combat Bots Only 5 | . 2 2 5 3 . . 4 4 4 . 1 5 Max Kills in Single Turn 3 | 1 1 2 3 1 . . 2 3 1 . 1 2 Gunslinging 1 | . . . . . . . 1 . . . . 1 Exploded 2 | . . 2 1 . . . . 1 1 . . . Melee . | . . . . . . . . . . . . . Uniques/NPCs Destroyed . | . . . . . . . . . . . . . Combat | -11 -10 -10 -9 -9 -9 -8 -8 -7 -6 -6 -6 -5 -------- Run | Yrd Mat Min Mat Min Exi Min Mat Fac Fac Was Fac Fac Hostile Shots Fired 933 | . 35 9 59 5 . . 303 287 15 1 16 203 Missed 325 | . 3 4 23 2 . . 97 89 4 . 5 98 Hits 608 | . 32 5 36 3 . . 206 198 11 1 11 105 Melee 11 | . . . . . . . . . . 1 . 10 Projectile 597 | . 32 5 36 3 . . 206 198 11 . 11 95 AOE 1 | . . . . . . . . . . . . 1 Critical Strikes 22 | . 1 . 1 . . . 9 4 . . . 7 Damage Taken 8846 | . 403 59 526 34 . . 2899 2273 205 56 336 2055 Core 2038 | . 25 . 60 . . . 297 542 37 45 18 1014 Absorbed by Shields . | . . . . . . . . . . . . . Regen/Repaired (Parts) 142 | . . . . . . . . 142 . . . . Core Remaining (%) 71 | 100 . 90 . . . 85 46 22 . . 88 . Volleys Fired 395 | 8 45 5 55 6 . . 151 65 8 4 13 35 Largest 2 | 2 2 2 2 2 . . 2 2 1 1 1 2 Hottest 105 | 40 46 53 53 46 . . 88 105 30 33 33 66 Shots Fired 714 | 16 90 10 95 12 . . 300 100 8 4 13 66 Gun 656 | 16 90 7 92 12 . . 300 56 . 4 13 66 Cannon 33 | . . . . . . . . 33 . . . . Launcher 25 | . . 3 3 . . . . 11 8 . . . Special . | . . . . . . . . . . . . . Kinetic 661 | 16 90 7 92 12 . . 298 63 . 4 13 66 Thermal 28 | . . . . . . . 2 26 . . . . Explosive 25 | . . 3 3 . . . . 11 8 . . . Electromagnetic . | . . . . . . . . . . . . . Robot Hit Streak 24 | 6 10 7 8 9 . . 24 18 4 3 7 4 Robot Miss Streak 5 | 2 5 1 3 1 . . 4 3 1 1 2 5 Penetration Max 1 | . . . . . . . 1 . . . . . Secondary Targets 8 | . 1 . 1 1 . . 4 . . . . 1 Max Gunslinging Chain 1 | . 1 . 1 1 . . 1 . . . . 1 Shots Hit Robots 498 | 11 50 8 61 9 . . 232 78 5 3 10 31 Core Hits 231 | 3 20 6 32 5 . . 96 35 16 1 4 13 Critical Kills 6 | . 2 . 1 . . . 1 . . 1 . 1 Critical Parts Destroyed 6 | . . . . . . . 2 1 . . 1 2 Critical Strikes 16 | . 2 . 1 . . . 3 5 . 1 1 3 Burn 1 | . . . . . . . . 1 . . . . Destroy 12 | . 2 . 1 . . . 3 1 . 1 1 3 Blast 3 | . . . . . . . . 3 . . . . Melee Attacks . | . . . . . . . . . . . . . Impact . | . . . . . . . . . . . . . Slashing . | . . . . . . . . . . . . . Piercing . | . . . . . . . . . . . . . Sneak Attacks . | . . . . . . . . . . . . . Combat Hostiles . | . . . . . . . . . . . . . Follow-up Attacks . | . . . . . . . . . . . . . Damage Inflicted 10136 | 144 706 308 1301 143 . . 3855 1968 645 73 281 712 Guns 7533 | 144 706 96 996 143 . . 3689 781 . 73 206 699 Cannons 675 | . . . . . . . . 675 . . . . Explosions 1801 | . . 212 305 . . . 128 511 645 . . . Melee . | . . . . . . . . . . . . . Ramming 127 | . . . . . . . 38 1 . . 75 13 Kinetic 7805 | 144 706 96 996 143 . . 3661 1081 . 73 206 699 Thermal 507 | . . . 104 . . . 28 375 . . . . Explosive 1649 | . . 212 201 . . . 128 463 645 . . . Electromagnetic 48 | . . . . . . . . 48 . . . . Impact . | . . . . . . . . . . . . . Slashing . | . . . . . . . . . . . . . Piercing . | . . . . . . . . . . . . . Highest Corruption 9 | . . . . . . . 1 3 . . 7 9 Average Corruption 2 | . . . . . . . 1 2 . . 6 5 Corruption Purged . | . . . . . . . . . . . . . Corruption Blocked . | . . . . . . . . . . . . . Effects 18 | . . . . . . . 4 5 . . 3 6 Message Errors 7 | . . . . . . . . 2 . . 2 3 Matter Fused 4 | . . . . . . . 2 2 . . . . Heat Flow Errors 1 | . . . . . . . . . . . 1 . Energy Discharges 1 | . . . . . . . 1 . . . . . Parts Rejected 2 | . . . . . . . 1 . . . . 1 Data Loss (minor) 2 | . . . . . . . . 1 . . . 1 Weapon Failures 1 | . . . . . . . . . . . . 1 Overload Shots . | . . . . . . . . . . . . . Overflow Damage 152 | . . . 105 . . . 15 26 6 . . . Projectiles 26 | . . . . . . . . 26 . . . . Explosions 126 | . . . 105 . . . 15 . 6 . . . Melee . | . . . . . . . . . . . . . Knockbacks 7 | . . . . . . . . 7 . . . . Impact . | . . . . . . . . . . . . . Kinetic 7 | . . . . . . . . 7 . . . . Secondary . | . . . . . . . . . . . . . Self-Inflicted Damage 319 | . . . 130 . . . 77 70 . . 36 6 Shots 6 | . . . 2 . . . 1 3 . . . . Rammed 11 | . . . . . . . 2 2 . . 6 1 Targets Rammed 12 | . . . . . . . 3 2 . . 6 1 Kicked 1 | . . . . . . . 1 . . . . . Crushed . | . . . . . . . . . . . . . Highest Temperature 362 | . 67 45 25 4 . . 117 362 1 8 242 30 Average Temperature 35 | . 15 20 4 3 . . 19 85 1 8 98 10 Received Heat Transfer 1899 | . 249 33 135 18 . . 936 282 93 . 81 72 Effects 2 | . . . . . . . . 2 . . . . Interference 2 | . . . . . . . . 2 . . . . Siege Activations . | . . . . . . . . . . . . . Martial Activations . | . . . . . . . . . . . . . Shielding Activations . | . . . . . . . . . . . . . Robots Disrupted . | . . . . . . . . . . . . . Combat Hostiles . | . . . . . . . . . . . . . Robots Corrupted . | . . . . . . . . . . . . . Combat Hostiles . | . . . . . . . . . . . . . Parts Fried . | . . . . . . . . . . . . . Impact Corruptions . | . . . . . . . . . . . . . Robots Melted . | . . . . . . . . . . . . . Combat Hostiles . | . . . . . . . . . . . . . Parts Melted 3 | . . . . . . . 1 2 . . . . Heat Transferred 1115 | . . . 100 . . . 74 941 . . . . Parts Sabotaged . | . . . . . . . . . . . . . Parts Stolen . | . . . . . . . . . . . . . Parts Stripped . | . . . . . . . . . . . . . Power Chain Reactions . | . . . . . . . . . . . . . Alert | -11 -10 -10 -9 -9 -9 -8 -8 -7 -6 -6 -6 -5 ------- Run | Yrd Mat Min Mat Min Exi Min Mat Fac Fac Was Fac Fac Maximum Alert Level 1 | . . . . . . . 1 1 1 . 1 . Low Security (%) 96 | 100 100 100 100 100 . 100 93 97 70 100 92 100 Level 1 3 | . . . . . . . 6 2 29 . 7 . Level 2 . | . . . . . . . . . . . . . Level 3 . | . . . . . . . . . . . . . Level 4 . | . . . . . . . . . . . . . Level 5 . | . . . . . . . . . . . . . High Security . | . . . . . . . . . . . . . Max Security . | . . . . . . . . . . . . . Peak Influence 262 | 5 50 64 166 85 . . 237 262 212 63 220 161 Initial 125 | . . 3 20 . . . . 102 125 63 . 70 Average 51 | 1 13 6 54 14 . . 79 48 173 15 78 32 Influence Increases 3594 | 10 279 74 537 85 . . 1179 612 117 5 367 329 Destroy 0b10 Robot/C 1800 | . 160 40 300 60 . . 740 260 80 . 20 140 Destroy 0b10 Robot/NC 240 | 10 25 10 70 . . . 70 40 5 . 5 5 Destroy Leader 462 | . 38 10 72 10 . . 186 94 10 . 12 30 Successful Hack 71 | . 24 . 5 . . . 15 27 . . . . Disable Machine 270 | . . . 30 15 . . 60 120 . . 15 30 Destroy Structure 166 | . 2 14 45 . . . 33 56 7 5 . 4 Partial Spotted 45 | . . . . . . . . 15 15 . 15 . Lose Combat Pursuer 540 | . 30 . 15 . . . 75 . . . 300 120 Influence Decreases 3526 | 10 271 28 591 85 . . 952 583 191 187 224 404 Entered New Map 487 | . . 5 34 . . . . 125 131 119 . 73 Time Decay 2191 | 10 271 23 361 85 . . 614 324 50 38 184 231 Lost Part 494 | . . . 50 . . . 150 134 10 30 20 100 Lost Ally 20 | . . . . . . . . . . . 20 . Purge Threat 334 | . . . 146 . . . 188 . . . . . Squads Dispatched 43 | . . . 1 . . . 13 10 . . 11 8 Investigation 17 | . . . 1 . . . 7 3 . . 3 3 Extermination 5 | . . . . . . . . 2 . . 1 2 Reinforcement 10 | . . . . . . . 4 1 . . 2 3 Assault 2 | . . . . . . . . . . . 2 . Garrison 9 | . . . . . . . 2 4 . . 3 . Intercept . | . . . . . . . . . . . . . Searches Triggered . | . . . . . . . . . . . . . Construction Impeded 1 | . . . . . . . . 1 . . . . Haulers Reinforced . | . . . . . . . . . . . . . Active Scanning Responses . | . . . . . . . . . . . . . Cargo Convoy Interrupts 1 | . . . . . . . . . . . . 1 Stealth | -11 -10 -10 -9 -9 -9 -8 -8 -7 -6 -6 -6 -5 --------- Run | Yrd Mat Min Mat Min Exi Min Mat Fac Fac Was Fac Fac Distress Signals 10 | . 2 . 2 . . . 3 1 . . . 2 Communications Jammed . | . . . . . . . . . . . . . Distress Signals . | . . . . . . . . . . . . . Times Spotted 179 | . 15 2 28 3 . . 55 21 4 1 23 27 Peak Tracking Total 13 | . 4 2 5 3 . . 4 5 4 1 13 10 Tactical Retreats 18 | . 2 . 1 . . . 4 . . . 5 6 Traps | -11 -10 -10 -9 -9 -9 -8 -8 -7 -6 -6 -6 -5 ------- Run | Yrd Mat Min Mat Min Exi Min Mat Fac Fac Was Fac Fac Traps Triggered 10 | . . . 2 . . . 2 2 1 . . 3 Indirectly . | . . . . . . . . . . . . . Trap Hack Attempts . | . . . . . . . . . . . . . Triggered . | . . . . . . . . . . . . . Disarmed . | . . . . . . . . . . . . . Reprogrammed . | . . . . . . . . . . . . . Reused . | . . . . . . . . . . . . . Traps Extracted . | . . . . . . . . . . . . . Installed . | . . . . . . . . . . . . . Triggered . | . . . . . . . . . . . . . Machines | -11 -10 -10 -9 -9 -9 -8 -8 -7 -6 -6 -6 -5 ---------- Run | Yrd Mat Min Mat Min Exi Min Mat Fac Fac Was Fac Fac Machines Disabled 18 | . . . 2 1 . . 4 8 . . 1 2 Max in Single Turn 4 | . . . 2 1 . . 1 4 . . . 1 Garrison Access 3 | . . . . . . . 1 1 . . 1 . Machines Repaired . | . . . . . . . . . . . . . Machines Dismantled . | . . . . . . . . . . . . . Machines Sabotaged . | . . . . . . . . . . . . . Overloaded Fab Kills . | . . . . . . . . . . . . . Hacking | -11 -10 -10 -9 -9 -9 -8 -8 -7 -6 -6 -6 -5 --------- Run | Yrd Mat Min Mat Min Exi Min Mat Fac Fac Was Fac Fac Machines Accessed 35 | . 6 . 6 . 4 . 7 6 . . 4 2 Terminals 24 | . 6 . 5 . . . 5 3 . . 3 2 Fabricators 2 | . . . . . . . . 1 . . 1 . Repair Stations 1 | . . . . . . . . 1 . . . . Recycling Units 1 | . . . 1 . . . . . . . . . Scanalyzers 1 | . . . . . . . 1 . . . . . Garrison Access 2 | . . . . . . . 1 1 . . . . Total Hacks 129 | . 19 . 18 . 27 . 29 19 . . 10 7 Successful 80 | . 9 . 9 . 27 . 19 11 . . 5 . Failed 48 | . 10 . 9 . . . 9 8 . . 5 7 Catastrophic 9 | . 1 . 2 . . . 2 1 . . 1 2 Database Lockouts 1 | . . . . . . . 1 . . . . . Manual 58 | . 17 . 15 . 1 . 11 2 . . 5 7 Terminals 79 | . 19 . 17 . . . 21 7 . . 8 7 Fabricators 6 | . . . . . . . . 4 . . 2 . Repair Stations 7 | . . . . . . . . 7 . . . . Recycling Units 1 | . . . 1 . . . . . . . . . Scanalyzers 7 | . . . . . . . 7 . . . . . Garrison Access 2 | . . . . . . . 1 1 . . . . Terminal Hacks 63 | . 9 . 8 . 27 . 13 3 . . 3 . Record 33 | . 1 . . . 26 . 3 1 . . 2 . Part Schematic 1 | . . . . . . . . . . . 1 . Robot Analysis 8 | . 6 . . . . . 1 1 . . . . Emergency Access Points 1 | . . . 1 . . . . . . . . . Alert Level 8 | . 2 . 3 . . . 2 1 . . . . Unreport Threat 4 | . . . 1 . . . 3 . . . . . Locate Traps 1 | . . . 1 . . . . . . . . . Dispatch Records 1 | . . . . . . . 1 . . . . . Recall Investigation 2 | . . . . . . . 2 . . . . . Hauler Manifests 1 | . . . 1 . . . . . . . . . Zone Layout 2 | . . . 1 . . . 1 . . . . . Proto ID Catalog 1 | . . . . . 1 . . . . . . . Fabricator Hacks 4 | . . . . . . . . 2 . . 2 . Load Schematic 2 | . . . . . . . . 1 . . 1 . Build 2 | . . . . . . . . 1 . . 1 . Repair Station Hacks 5 | . . . . . . . . 5 . . . . Scan Component 3 | . . . . . . . . 3 . . . . Repair 2 | . . . . . . . . 2 . . . . Recycling Unit Hacks 1 | . . . 1 . . . . . . . . . Report Inventory 1 | . . . 1 . . . . . . . . . Scanalyzer 5 | . . . . . . . 5 . . . . . Insert Component 1 | . . . . . . . 1 . . . . . Analyze 1 | . . . . . . . 1 . . . . . Retrieve Study 3 | . . . . . . . 3 . . . . . Garrison Access Hacks 2 | . . . . . . . 1 1 . . . . Seal Access 2 | . . . . . . . 1 1 . . . . Unauthorized Hacks . | . . . . . . . . . . . . . Terminals . | . . . . . . . . . . . . . Fabricators . | . . . . . . . . . . . . . Repair Stations . | . . . . . . . . . . . . . Recycling Units . | . . . . . . . . . . . . . Scanalyzers . | . . . . . . . . . . . . . Garrison Access . | . . . . . . . . . . . . . Data Cores Recovered 2 | . . . 1 . . . 1 . . . . . Used . | . . . . . . . . . . . . . Hacking Detections 27 | . 6 . 5 . . . 6 4 . . 4 2 Full Trace Events 18 | . 3 . 1 . . . 6 3 . . 3 2 Feedback Events 1 | . . . . . . . 1 . . . . . Corruption 1 | . . . . . . . 1 . . . . . Feedback Blocked . | . . . . . . . . . . . . . Robot Schematics Acquired . | . . . . . . . . . . . . . Robots Built . | . . . . . . . . . . . . . Authchips . | . . . . . . . . . . . . . Time . | . . . . . . . . . . . . . Total Robot Build Rating . | . . . . . . . . . . . . . Part Schematics Acquired 2 | . . . . . . . 1 . . . 1 . Parts Built 3 | . . . . . . . . 2 . . 1 . Authchips . | . . . . . . . . . . . . . Time 170 | . . . . . . . . 36 . . 134 . Total Part Build Rating 10 | . . . . . . . . 6 . . 4 . Part Studies Acquired 3 | . . . . . . . 3 . . . . . Parts Repaired 2 | . . . . . . . . 2 . . . . Time 76 | . . . . . . . . 76 . . . . Parts Recycled . | . . . . . . . . . . . . . Recycled Matter . | . . . . . . . . . . . . . Retrieved Matter . | . . . . . . . . . . . . . Retrieved Components . | . . . . . . . . . . . . . Parts Scanalyzed 1 | . . . . . . . 1 . . . . . Part Schematics Acquired 1 | . . . . . . . 1 . . . . . Parts Damaged 1 | . . . . . . . 1 . . . . . Bothacking | -11 -10 -10 -9 -9 -9 -8 -8 -7 -6 -6 -6 -5 ------------ Run | Yrd Mat Min Mat Min Exi Min Mat Fac Fac Was Fac Fac Used RIF Installer . | . . . . . . . . . . . . . Robots Hacked . | . . . . . . . . . . . . . Non-combat . | . . . . . . . . . . . . . Combat . | . . . . . . . . . . . . . Robot Hacks Applied . | . . . . . . . . . . . . . Relay Couplers Released 1 | . . . . . . . . . . . 1 . Machine Destruction 1 | . . . . . . . . . . . 1 . Fabnet Peak Effective % . | . . . . . . . . . . . . . Robots Rewired . | . . . . . . . . . . . . . Allies Hacked . | . . . . . . . . . . . . . Hacks Repelled . | . . . . . . . . . . . . . Allies | -11 -10 -10 -9 -9 -9 -8 -8 -7 -6 -6 -6 -5 -------- Run | Yrd Mat Min Mat Min Exi Min Mat Fac Fac Was Fac Fac Total Allies 21 | . . . . . . . . . . 21 . . Largest Group 21 | . . . . . . . . . . 21 4 . Highest-Rated Group 818 | . . . . . . . . . . 818 100 . Highest-Rated Ally 50 | . . . . . . . . . . 50 25 . Total Orders . | . . . . . . . . . . . . . Ally Attacks 31 | . . . . . . . . . . 10 21 . Total Damage 575 | . . . . . . . . . . 277 298 . Kills 1 | . . . . . . . . . . 1 . . Allies Corrupted . | . . . . . . . . . . . . . Allies Melted . | . . . . . . . . . . . . . Intel | -11 -10 -10 -9 -9 -9 -8 -8 -7 -6 -6 -6 -5 ------- Run | Yrd Mat Min Mat Min Exi Min Mat Fac Fac Was Fac Fac Active Infowar (turns) 5665 | 33 1085 217 640 . . . . 1721 105 129 795 940 Optics 1960 | . . . . . . . . . 96 129 795 940 Terrain 1975 | 33 1085 217 640 . . . . . . . . . T.N.C. 3690 | . . . . . . . . 1721 105 129 795 940 ECM 14 | . . . . . . . . 14 . . . . Robot Analysis Total 8 | . 6 . . . . . 1 1 . . . . Derelict Logs Recovered 2 | . . . . 2 . . . . . . . . Drone Launches . | . . . . . . . . . . . . . Drone Recoveries . | . . . . . . . . . . . . . Exploration | -11 -10 -10 -9 -9 -9 -8 -8 -7 -6 -6 -6 -5 ------------- Run | Yrd Mat Min Mat Min Exi Min Mat Fac Fac Was Fac Fac Turns Passed 11069 | 128 1085 217 1194 502 537 388 3304 1721 105 129 795 964 Spaces Moved 8788 | 79 754 167 763 286 336 242 1620 1251 254 312 1280 1444 Core 56 | 9 . . . . . . . . . . . 47 Treads 2203 | . . . . 212 336 242 921 492 . . . . Legs 2412 | 70 754 167 763 74 . . 488 96 . . . . Wheels 211 | . . . . . . . 211 . . . . . Hover 356 | . . . . . . . . . . . 356 . Flight 3550 | . . . . . . . . 663 254 312 924 1397 Fastest Speed 30 | 50 120 120 120 160 160 160 80 34 30 30 30 30 Average Speed 94 | 113 120 120 131 168 160 160 140 102 33 34 39 33 Slowest Speed 360 | 120 120 120 190 240 160 160 360 260 34 35 60 176 Overloaded Moves . | . . . . . . . . . . . . . Propulsion Burnouts . | . . . . . . . . . . . . . Robots Hopped 15 | . . . . . . . . 1 1 1 3 9 Potential Cave-ins 1 | . . . 1 . . . . . . . . . Cave-ins Triggered . | . . . . . . . . . . . . . Exploration Rate (%) 44 | 5 82 36 46 56 62 66 63 19 5 97 27 15 Regions Visited 12 Branch Regions 4 Pre-discovered Areas . | . . . . . . . . . . . . . Known Exits Taken 1 | . . . . . . . 1 . . . . . Unknown Exits Taken 9 | 1 1 1 1 1 1 1 . 1 . . 1 . Scrap Searched 2 | . . . . 1 . 1 . . . . . . Spaces Dug . | . . . . . . . . . . . . . Terrain Destroyed 161 | . . 16 53 . . . 29 55 6 . . 2 Melee . | . . . . . . . . . . . . . Projectile 6 | . . . . . . . 1 3 . . . 2 AOE 155 | . . 16 53 . . . 28 52 6 . . . Terrain Rammed . | . . . . . . . . . . . . . Walls Destroyed . | . . . . . . . . . . . . . Machines Disabled . | . . . . . . . . . . . . . Actions | -11 -10 -10 -9 -9 -9 -8 -8 -7 -6 -6 -6 -5 --------- Run | Yrd Mat Min Mat Min Exi Min Mat Fac Fac Was Fac Fac Total 10827 | 97 858 175 867 296 336 243 2371 1590 264 327 1556 1847 Wait 1375 | . 27 1 12 . . . 513 235 . . 248 339 Move 8749 | 78 753 166 762 285 335 241 1619 1248 252 309 1273 1428 Hop 13 | . . . . . . . . 1 1 1 3 7 Pick Up 76 | 4 13 1 13 3 1 1 16 8 . 4 2 10 Fast Attach 46 | 7 . . 2 2 . . 15 4 3 4 5 4 Attach 49 | . . . 10 . . . 13 14 . 2 2 8 Detach 7 | . . . 1 . . . 3 1 . . . 2 Swap 41 | . 7 1 9 . . . 13 6 . . 1 4 Drop 64 | . 13 1 3 . . 1 25 6 . 3 3 9 Fire 395 | 8 45 5 55 6 . . 151 65 8 4 13 35 Melee . | . . . . . . . . . . . . . Ram 9 | . . . . . . . 2 . . . 6 1 Kick 1 | . . . . . . . 1 . . . . . Crush 2 | . . . . . . . . 2 . . . . Escape Stasis . | . . . . . . . . . . . . . Rewire . | . . . . . . . . . . . . . Trap . | . . . . . . . . . . . . . Miscellaneous . | . . . . . . . . . . . . . Route ------- -11/Scrapyard -10/Materials (discovered 3 exits: *Mat x2 / [*Min]) -10/Mines -9/Materials (discovered 3 exits: *Mat x2 / [*Min]) -9/Mines -9/Exiles -8/Mines -8/Materials (discovered 4 exits: *Fac x2 / *Sto x2) -7/Factory -6/Factory -6/Waste -6/Factory -5/Factory History --------- Turn | Location | Event 22 | -11/Scrapyard | Discovered new exit (range 15) 129 | -11/Scrapyard | Entered Materials 301 | -10/Materials | Build established: Mutant 307 | -10/Materials | Discovered new exit (range 3) 546 | -10/Materials | Discovered new exit (range 10) 1184 | -10/Materials | Discovered new exit (range 12) 1214 | -10/Materials | Entered Mines 1276 | -10/Mines | Assembled infested the area 1281 | -10/Mines | Assisted by a Guerilla fighting off Assembled 1311 | -10/Mines | Received a Rocket Launcher from a helpful Derelict 1383 | -10/Mines | Discovered new exit (range 11) 1431 | -10/Mines | Entered Materials 1431 | -9/Materials | Evolved 2 slots: Propulsion x2 1554 | -9/Materials | Lost 3 parts (1p1n1w) 1773 | -9/Materials | Discovered new exit (range 15) 2042 | -9/Materials | Build established: Scavenger-Mutant 2378 | -9/Materials | Discovered new exit (range 9) 2389 | -9/Materials | Discovered new exit (range 8) 2625 | -9/Materials | Entered Mines 2675 | -9/Mines | Build established: Mutant 2696 | -9/Mines | Learned location of 1 exit from Materials 2732 | -9/Mines | Found a damaged Exp. Sensor Array with a note attached 3074 | -9/Mines | Build established: Scavenger-Mutant 3116 | -9/Mines | Deemed a non-threat by the Exiles lab entrance 3118 | -9/Mines | Discovered new exit (range 5) 3127 | -9/Mines | Entered Exiles 3166 | -9/Exiles | Met 8R-AWN 3199 | -9/Exiles | Met EX-HEX 3300 | -9/Exiles | Met EX-BIN 3331 | -9/Exiles | Aligned with FarCom system 3332 | -9/Exiles | Given EX-Vault access code 3467 | -9/Exiles | Opened EX-Vault 3499 | -9/Exiles | Found Modified TNC 3533 | -9/Exiles | Warned to stay clear of 0b10 Research branches 3589 | -9/Exiles | Met EX-DEC 3652 | -9/Exiles | Discovered new exit (range 10) 3664 | -9/Exiles | Left Exiles lab with Modified TNC 3664 | -9/Exiles | Entered Mines 4039 | -8/Mines | Discovered new exit (range 8) 4052 | -8/Mines | Entered Materials 4052 | -8/Materials | Evolved 2 slots: Utility x2 4053 | -8/Materials | Identified exit to Storage 4054 | -8/Materials | Identified exit to Factory 4862 | -8/Materials | Lost 4 parts (1p2n1w) 5098 | -8/Materials | Lost 3 parts (2n1w) 5185 | -8/Materials | Discovered exit to Storage (range 10) 5360 | -8/Materials | Discovered exit to Factory (range 16) 5456 | -8/Materials | Garrison activated, responded to threat 6687 | -8/Materials | Central database locked down 7135 | -8/Materials | Core integrity fell below 50% 7356 | -8/Materials | Entered Factory 7356 | -7/Factory | Evolved 2 slots: Utility x2 7660 | -7/Factory | Build established: Scavenger-Skirmisher 8081 | -7/Factory | Repaired Arm. Treads 8119 | -7/Factory | Repaired Arm. Treads 8280 | -7/Factory | Garrison activated, responded to threat 8283 | -7/Factory | Lost 3 parts (2n1u) 8509 | -7/Factory | Garrison activated, responded to threat 8577 | -7/Factory | Core integrity fell below 50% 8617 | -7/Factory | Lost 10 parts (2p3n1u4w) 8671 | -7/Factory | Discovered new exit (range 11) 8731 | -7/Factory | Fabricated Lgt. Nuclear Core? 8876 | -7/Factory | Build established: Scout 9077 | -7/Factory | Entered another Factory area 9077 | -6/Factory | Evolved 2 slots: Utility x2 9182 | -6/Factory | Sucked down chute 9182 | -6/Factory | Entered Waste 9183 | -6/Waste | Met a frightened Derelict 9183 | -6/Waste | Joined by Warlord forces that had cleared the area 9192 | -6/Waste | A Compactor rumbled back to life 9192 | -6/Waste | Crushed by Compactor (1 part destroyed, 2 dropped) 9192 | -6/Waste | Spotted C-40 Crusher 9195 | -6/Waste | Allies destroyed C-40 Crusher 9200 | -6/Waste | Found Damper Plating 9223 | -6/Waste | Lost 3 parts (1p1n1w) 9305 | -6/Waste | Discovered new exit (range 12) 9311 | -6/Waste | Entered Factory 9311 | -6/Factory | Accompanied by 4 allies 9396 | -6/Factory | Garrison activated, responded to threat 9452 | -6/Factory | Lost 3 allies 9604 | -6/Factory | Build established: Hacker-Scout 9648 | -6/Factory | Fabricated Cld. VTOL Module? 10063 | -6/Factory | Discovered new exit (range 8) 10106 | -6/Factory | Entered another Factory area 10106 | -5/Factory | Evolved 2 slots: Utility x2 10333 | -5/Factory | Build established: Scout 10804 | -5/Factory | Cargo convoy interrupted 10838 | -5/Factory | Build established: Hacker-Scout 10968 | -5/Factory | Lost 8 parts (3n3u2w) 11046 | -5/Factory | Core integrity fell below 50% 11046 | -5/Factory | Released all parts (8) 11055 | -5/Factory | Core integrity fell below 20% 11070 | -5/Factory | Destroyed by C-35 Carver with Carbide Saw Last Messages --------------- 11045_ Knocked back. 11046_ Released Adv. Hacking Suite. 11046_ Released Hacking Suite. 11046_ Released Modified TNC. 11046_ Released Adv. Visual Processing Unit. 11046_ Released Hacking Suite. 11046_ Released System Shield. 11046_ Released Lgt. Nuclear Core. 11046_ Released Weight Redist. System. [Achievement: Live, Flee, And Rebuild] 11048_ Slug penetrates C-35 Carver. 11048_ Slug penetrates W-25 Informer. 11048_ K-01 Serf destroyed. 11054_ Slammed into K-01 Serf. 11054_ Destabilizing: Core damaged (-20). 11057_ Penetrated by Slug. 11062_ Acquired Imp. Coolant Injector. 11064_ M-28 Smith repairs C-35 Carver. 11069_ Imp. Coolant Injector severed. [Achievement: 10k Club] Map ----- +----------------------------------------------------+ | ?????????????????????????????????????????????????? | | ?????????????????????????????????????????????????? | | ?????????????????????????????????????????????????? | | ?????????????????????????????????????????????????? | | ?????????????????????????????????????????????????? | | ??????? #????????????????????????????????????????? | | ???????!#????????????????????????????????????????? | | ?????? #????????????????????????????????????????? | | ? ?????????????????????????????????????????? | | ? """" ?????????????????????????????????????????? | | ??"""" ??????????????????????????????????????????? | | ??"""" ??????????????????????????????????????????? | | ???"""???????????????????????????????????????????? | | ??? ???????????????????????????????? ??????????? | | ####+###########################+### ??????????? | | ?????????? | | % p ?????????? | | % ????????? | | p h ????????? | | ????????? | | ####+####################+########???????????????? | | ??????????????????# #????????????????? | | ??????????????????# #????????????????? | | ??????????????????# #????????????????? | | ??????????????????# c #????????????????? | | ??????????????????# !c@ #????????????????? | | ??????????????????# #????????????????? | | ??????????????????###############????????????????? | | ?????????????????????????????????????????????????? | | ?????????????????????????????????????????????????? | | ?????????????????????????????????????????????????? | | ?????????????????????????????????????????????????? | | ?????????????????????????????????????????????????? | | ?????????????????????????????????????????????????? | | ?????????????????????????????????????????????????? | | ?????????????????????????????????????????????????? | | ?????????????????????????????????????????????????? | | ?????????????????????????????????????????????????? | | ?????????????????????????????????????????????????? | | ?????????????????????????????????????????????????? | | ?????????????????????????????????????????????????? | | ?????????????????????????????????????????????????? | | ?????????????????????????????????????????????????? | | ?????????????????????????????????????????????????? | | ?????????????????????????????????????????????????? | | ?????????????????????????????????????????????????? | | ?????????????????????????????????????????????????? | | ?????????????????????????????????????????????????? | | ?????????????????????????????????????????????????? | | ?????????????????????????????????????????????????? | +----------------------------------------------------+ Best States ------------- Heat Dissipation 41 Energy Generation 18 Energy Capacity 290 Matter Stores 300 Matter Capacity 300 Sight Range 20 Terrain Scan Range 16 Terrain Scan Density 10 ECM Strength 2 Additional Mass Support 9 Armor Coverage 300 Evasion (%) 74 Targeting Accuracy 5 Recoil Reduction 4 Offensive Hacking 34 Defensive Hacking 10 Item Schematics ----------------- Lgt. Nuclear Core | -8/Materials | Scanalyzed Cld. VTOL Module | -6/Factory | Hacked Robot Schematics ------------------ None Fabricated ------------ Lgt. Nuclear Core | x2 | -7/Factory Cld. VTOL Module | x1 | -6/Factory Repaired ---------- Arm. Treads | 52% | -7/Factory Studied --------- Cesium-ion Thruster | -8/Materials | Hacked Autogun | -8/Materials | Hacked Mni. Grenade Launcher | -8/Materials | Hacked Alien Tech Used ----------------- None Achievements -------------- 10k Club Armchair Analyst Everything Is Under Control GoHome() Insider Info Just What I Needed Live, Flee, And Rebuild Party Time Slippery One The More The Merrier Universal Adapter We Are Legion Challenges ------------ None Game ------ Seed ExpertInsulationBasin Manual? 0 Play Time 01:45:27 Cumulative 9.1 hours Start 2026.09.12 @ 18:40:58 End 2026.09.12 @ 20:29:05 Sessions 1 Manual Loads 0 Difficulty Rogue Special Mode None Game No. 20 Rogue 20 Adventurer 0 Explorer 0 Win Type - Total 0 Types 0/0/0/0/0/0/0/0/0/0 Lore% 13 Gallery% 12 Achievement% 13 Wizard Run 0 Options --------- Layout 1 ASCII 0 Keyboard 1 Movement Vi Keybinds 1 Fullscreen 1 Font 32/SmallcapsGlow Map View 50x35 Zoom Use 0% Tactical HUD 1 Map Filters NONE Filters NONE Steam 1 RUN: e9165d11-b817-4acd-abb2-21a475bf6365